bitfinex/quotes_BTCUSD_20251001
["timestamp","ask_amount","ask_price","bid_price","bid_amount"]
[1759290550178,0.17519271,114160.0,114150.0,0.18849366]
[1759290550387,0.17519271,114160.0,114150.0,8.61953366]
[1759290550586,0.19780271,114160.0,114150.0,8.61953366]
[1759290550989,0.19780271,114160.0,114150.0,8.64701376]
[1759290551204,0.19780271,114160.0,114150.0,8.55597376]
[1759290551398,0.19780271,114160.0,114150.0,8.64747899]
[1759290551602,0.19780271,114160.0,114150.0,8.89827899]
[1759290554712,0.02261,114160.0,114150.0,8.83833073]
[1759290555787,0.02261,114160.0,114150.0,8.49649073]
[1759290555991,0.02261,114160.0,114150.0,8.83837073]
[1759290557164,0.02261,114160.0,114150.0,9.73065073]
[1759290559694,0.19780271,114160.0,114150.0,8.32037073]
[1759290560035,0.19780271,114160.0,114150.0,9.39045073]
[1759290562466,0.19976271,114160.0,114150.0,8.14518889]
[1759290562668,0.29228818,114160.0,114150.0,8.75994889]
[1759290562869,0.29228818,114160.0,114150.0,9.21518889]
[1759290568492,0.29228818,114160.0,114150.0,9.39039694]
[1759290568745,0.29228818,114160.0,114150.0,9.21522889]
[1759290569133,0.29228818,114160.0,114150.0,9.39043694]
[1759290569314,0.29228818,114160.0,114150.0,9.21522889]
[1759290569726,0.29228818,114160.0,114150.0,9.17898839]
[1759290575182,0.29228818,114160.0,114150.0,9.08794839]
[1759290575388,0.29228818,114160.0,114150.0,9.17898839]
[1759290576391,0.29228818,114160.0,114150.0,8.144259]
[1759290576600,0.29228818,114160.0,114150.0,9.214299]
[1759290576800,0.28914818,114160.0,114150.0,9.214299]
[1759290577007,0.29228818,114160.0,114150.0,8.144259]
[1759290577205,0.29228818,114160.0,114150.0,9.214299]
[1759290577399,0.29228818,114160.0,114150.0,0.19965584]
[1759290577589,0.32244008,114160.0,114150.0,1.26969584]
[1759290577973,0.32244008,114160.0,114150.0,0.19965584]
[1759290578178,0.32244008,114160.0,114150.0,1.26969584]
[1759290578767,0.32244008,114160.0,114150.0,0.19965584]
[1759290578970,0.32244008,114160.0,114150.0,1.26969584]
[1759290579495,0.32244008,114160.0,114150.0,0.19965584]
[1759290579705,0.32244008,114160.0,114150.0,1.26969584]
[1759290579937,0.32244008,114160.0,114150.0,1.23438523]
[1759290580251,0.3487338,114160.0,114150.0,1.23438523]
[1759290580456,0.3487338,114160.0,114150.0,1.14334523]
[1759290580659,0.3487338,114160.0,114150.0,1.23438523]
[1759290584214,0.3487338,114160.0,114150.0,1.23446523]
[1759290585024,0.17523876,114130.0,114120.0,0.17525381]
[1759290585224,0.26462423,114130.0,114120.0,8.26643335]
[1759290585430,0.28794423,114130.0,114120.0,8.26643335]
[1759290585837,0.28794423,114130.0,114120.0,8.09117954]
[1759290586144,0.28990423,114130.0,114120.0,8.51695365]
[1759290586313,0.28990423,114130.0,114120.0,8.34169954]
[1759290586719,0.28990423,114130.0,114120.0,8.51695365]
[1759290587008,0.28794423,114130.0,114120.0,8.51695365]
[1759290587213,0.28794423,114130.0,114120.0,8.86989954]
[1759290587322,0.28794423,114130.0,114120.0,9.40943365]
[1759290588957,0.11270547,114130.0,114120.0,9.40943365]
[1759290589173,0.28794423,114130.0,114120.0,9.40943365]
[1759290592442,0.11270547,114130.0,114120.0,9.40943365]
[1759290593271,0.28794423,114130.0,114120.0,9.40943365]
[1759290593473,0.11270547,114130.0,114120.0,9.40943365]
[1759290593852,0.28794423,114130.0,114120.0,9.40943365]
[1759290594245,0.11270547,114130.0,114120.0,9.40943365]
[1759290594402,0.28794423,114130.0,114120.0,9.40943365]
[1759290595329,0.11270547,114130.0,114120.0,9.40943365]
[1759290596802,0.28794423,114130.0,114120.0,9.40943365]
[1759290599160,0.11270547,114130.0,114120.0,9.40943365]
[1759290599558,0.28794423,114130.0,114120.0,9.40943365]
[1759290599752,0.11270547,114130.0,114120.0,9.40943365]
[1759290600130,0.28794423,114130.0,114120.0,8.33931365]
[1759290600342,0.28794423,114130.0,114120.0,9.40959365]
[1759290601139,0.28794423,114130.0,114120.0,8.33931365]
[1759290601319,0.28794423,114130.0,114120.0,9.40959365]
[1759290601666,0.28794423,114130.0,114120.0,8.33931365]
[1759290602070,0.28794423,114130.0,114120.0,9.40955365]
[1759290602277,0.11270547,114130.0,114120.0,9.40955365]
[1759290603338,0.02332,114130.0,114120.0,9.40955365]
[1759290604288,0.02332,114130.0,114120.0,9.2039288]
[1759290606396,0.19855876,114130.0,114120.0,8.1336888]
[1759290606592,0.02332,114130.0,114120.0,9.2039288]
[1759290606803,0.02332,114130.0,114120.0,8.1336888]
[1759290607008,0.02332,114130.0,114120.0,9.2039288]
[1759290607247,0.02332,114130.0,114120.0,8.1336888]
[1759290607450,0.19855876,114130.0,114120.0,8.1336888]
[1759290607784,0.20368876,114130.0,114120.0,9.2039288]
[1759290608182,0.20064876,114130.0,114120.0,7.95843469]
[1759290608339,0.20064876,114130.0,114120.0,9.2039288]
[1759290608680,0.19855876,114130.0,114120.0,9.2039288]
[1759290609475,0.19855876,114130.0,114120.0,8.7485288]
[1759290609698,0.19855876,114130.0,114120.0,9.2039288]
[1759290610067,0.20368876,114130.0,114120.0,8.93759469]
[1759290610271,0.20368876,114130.0,114120.0,9.02867469]
[1759290610715,0.29307423,114130.0,114120.0,7.95843469]
[1759290610938,0.32322613,114130.0,114120.0,7.95843469]
[1759290611551,0.32322613,114130.0,114120.0,9.02867469]
[1759290612056,0.32322613,114130.0,114120.0,7.95843469]
[1759290612257,0.32322613,114130.0,114120.0,9.02867469]
[1759290612555,0.32322613,114130.0,114120.0,7.95843469]
[1759290612765,0.32322613,114130.0,114120.0,0.16405954]
[1759290612936,0.32322613,114130.0,114120.0,1.23429954]
[1759290613533,0.32322613,114130.0,114120.0,1.23437954]
[1759290614118,0.34952465,114130.0,114120.0,1.23437954]
[1759290614328,0.34952465,114130.0,114120.0,0.16405954]
[1759290614654,0.34952465,114130.0,114120.0,1.23437954]
[1759290615053,0.34952465,114130.0,114120.0,0.98385954]
[1759290615256,0.34952465,114130.0,114120.0,1.23437954]
[1759290615570,0.34952465,114130.0,114120.0,0.98385954]
[1759290615772,0.34952465,114130.0,114120.0,0.16405954]
[1759290615942,0.34952465,114130.0,114120.0,1.23437954]
[1759290619427,0.34952465,114130.0,114120.0,1.14329954]
[1759290619687,0.34952465,114130.0,114120.0,0.16405954]
[1759290619897,0.34952465,114130.0,114120.0,1.23437954]
[1759290620303,0.34952465,114130.0,114120.0,0.77893954]
[1759290620556,0.34952465,114130.0,114120.0,1.23437954]
[1759290620894,0.34952465,114130.0,114120.0,0.16405954]
[1759290621096,0.34952465,114130.0,114120.0,1.23437954]
[1759290621295,0.34952465,114130.0,114120.0,0.98385954]
[1759290621576,0.34952465,114130.0,114120.0,1.23437954]
[1759290622133,0.34952465,114130.0,114120.0,0.16405954]
[1759290622348,0.37452465,114130.0,114120.0,0.87001954]
[1759290623325,0.17525411,114120.0,114110.0,0.59421485]
[1759290623537,0.26662958,114120.0,114110.0,1.04983473]
[1759290623665,0.29299958,114120.0,114110.0,1.04983473]
[1759290624065,0.31930421,114120.0,114110.0,1.04983473]
[1759290624263,0.37445611,114120.0,114110.0,0.95875473]
[1759290624504,0.37445611,114120.0,114110.0,1.30035473]
[1759290625453,0.34945611,114120.0,114110.0,1.30035473]
[1759290627520,0.34441611,114120.0,114110.0,1.30035473]
[1759290628215,0.34640611,114120.0,114110.0,1.30035473]
[1759290628433,0.31426421,114120.0,114110.0,9.30035473]
[1759290628832,0.34441611,114120.0,114110.0,9.30035473]
[1759290631121,0.31426421,114120.0,114110.0,9.4756242]
[1759290631331,0.1390101,114120.0,114110.0,9.8156242]
[1759290631540,0.02332,114120.0,114110.0,8.94295998]
[1759290632806,0.02332,114120.0,114110.0,9.19351998]
[1759290634986,0.02332,114120.0,114110.0,9.21981361]
[1759290635653,0.02332,114120.0,114110.0,8.57826989]
[1759290635846,0.02332,114120.0,114110.0,9.28430989]
[1759290636638,0.02332,114120.0,114110.0,9.28426989]
[1759290637340,0.02332,114120.0,114110.0,9.81262989]
[1759290637543,0.02332,114120.0,114110.0,8.74222989]
[1759290637873,0.02332,114120.0,114110.0,9.81262989]
[1759290638434,0.02332,114120.0,114110.0,9.90201536]
[1759290639566,0.02332,114120.0,114110.0,9.74941939]
[1759290640175,0.02332,114120.0,114110.0,8.67901939]
[1759290640383,0.02332,114120.0,114110.0,9.74933939]
[1759290643565,0.02332,114120.0,114110.0,8.67901939]
[1759290643984,0.02332,114120.0,114110.0,9.65821939]
[1759290644361,0.02332,114120.0,114110.0,9.74929939]
[1759290645527,0.02332,114120.0,114110.0,10.18990981]
[1759290645742,0.07295609,114160.0,114150.0,0.51520805]
[1759290645890,0.07295609,114160.0,114150.0,9.04066259]
[1759290646705,0.28625391,114180.0,114160.0,0.51518054]
[1759290647064,0.08938547,114170.0,114160.0,0.51518054]
[1759290647270,0.08938547,114170.0,114160.0,8.87950054]
[1759290647653,0.26456283,114170.0,114160.0,8.87950054]
[1759290647795,0.28788283,114170.0,114160.0,9.12998054]
[1759290648176,0.11270547,114170.0,114160.0,9.12998054]
[1759290650198,0.02332,114170.0,114160.0,9.12998054]
[1759290651247,0.02332,114170.0,114160.0,9.12990054]
[1759290651473,0.19849736,114170.0,114160.0,9.58522054]
[1759290652013,0.02332,114170.0,114160.0,9.58522054]
[1759290652377,0.02332,114170.0,114160.0,9.12990054]
[1759290652599,0.02332,114170.0,114160.0,9.58522054]
[1759290655022,0.02332,114170.0,114160.0,9.24522054]
[1759290655228,0.19849736,114170.0,114160.0,9.24522054]
[1759290655403,0.02332,114170.0,114160.0,9.24522054]
[1759290655571,0.19849736,114170.0,114160.0,9.24522054]
[1759290656232,0.02332,114170.0,114160.0,9.24522054]
[1759290657994,0.19849736,114170.0,114160.0,9.24522054]
[1759290659212,0.19849736,114170.0,114160.0,8.17518054]
[1759290659426,0.19849736,114170.0,114160.0,9.24511271]
[1759290661172,0.02332,114170.0,114160.0,9.24511271]
[1759290661382,0.02332,114170.0,114160.0,9.58511271]
[1759290663809,0.02332,114170.0,114160.0,9.61139521]
[1759290665711,0.02332,114170.0,114160.0,9.25406905]
[1759290665828,0.02332,114170.0,114160.0,9.95970905]
[1759290667156,0.02332,114170.0,114160.0,9.41794905]
[1759290667369,0.02332,114170.0,114160.0,10.48778905]
[1759290667569,0.02332,114170.0,114160.0,9.25406905]
[1759290667774,0.02332,114170.0,114160.0,10.30066068]
[1759290668457,0.02332,114170.0,114160.0,9.48122068]
[1759290668664,0.02332,114170.0,114160.0,9.23086068]
[1759290669078,0.02332,114170.0,114160.0,9.48122068]
[1759290669705,0.02332,114170.0,114160.0,9.51713359]
[1759290670268,0.02332,114170.0,114160.0,9.26677359]
[1759290670470,0.02528,114170.0,114160.0,9.26677359]
[1759290670675,0.02528,114170.0,114160.0,9.51713359]
[1759290670889,0.02332,114170.0,114160.0,9.26677359]
[1759290671110,0.02332,114170.0,114160.0,9.51713359]
[1759290671807,0.02332,114170.0,114160.0,9.26677359]
[1759290672039,0.02332,114170.0,114160.0,9.51713359]
[1759290674223,0.02332,114170.0,114160.0,9.49085109]
[1759290675517,0.02332,114170.0,114160.0,9.51405946]
[1759290675734,0.02332,114170.0,114160.0,9.49085109]
[1759290676236,0.02332,114170.0,114160.0,9.24049109]
[1759290676381,0.02332,114170.0,114160.0,9.49085109]
[1759290676582,0.02332,114170.0,114160.0,9.49081109]
[1759290677374,0.02332,114170.0,114160.0,10.47405109]
[1759290680172,0.02332,114170.0,114160.0,10.43813818]
[1759290683348,0.02332,114170.0,114160.0,10.29580977]
[1759290683589,0.02332,114170.0,114160.0,10.27425818]
[1759290683999,0.02332,114170.0,114160.0,10.33706359]
[1759290684187,0.02332,114170.0,114160.0,9.29366271]
[1759290684404,0.02332,114170.0,114160.0,9.4811773]
[1759290684893,0.02332,114170.0,114160.0,9.45489818]
[1759290685063,0.02332,114170.0,114160.0,9.20457818]
[1759290685274,0.02332,114170.0,114160.0,9.45489818]
[1759290686387,0.02332,114170.0,114160.0,9.20457818]
[1759290686574,0.02332,114170.0,114160.0,9.45489818]
[1759290686730,0.02332,114170.0,114160.0,9.48975036]
[1759290687124,0.02332,114170.0,114160.0,9.65359036]
[1759290687333,0.02332,114170.0,114160.0,10.53575577]
[1759290689752,0.02332,114170.0,114160.0,10.19155286]
[1759290690721,0.02332,114170.0,114160.0,10.19207286]
[1759290692554,0.02332,114170.0,114160.0,10.27642986]
[1759290692758,0.02332,114170.0,114160.0,10.23990274]
[1759290693929,0.02332,114170.0,114160.0,10.30270815]
[1759290694309,0.02332,114170.0,114160.0,10.23990274]
[1759290694514,0.02332,114170.0,114160.0,9.16970274]
[1759290694721,0.02332,114170.0,114160.0,10.05443115]
[1759290696309,0.02332,114170.0,114160.0,10.11723656]
[1759290697071,0.02332,114170.0,114160.0,9.75307656]
[1759290697277,0.02332,114170.0,114160.0,10.30262815]
[1759290697644,0.02332,114170.0,114160.0,10.13878815]
[1759290698161,0.02332,114170.0,114160.0,9.77462815]
[1759290698404,0.02332,114170.0,114160.0,9.41046815]
[1759290699051,0.02332,114170.0,114160.0,9.31942815]
[1759290699685,0.02332,114170.0,114160.0,9.25662274]
[1759290699929,0.02332,114170.0,114160.0,9.33496952]
[1759290700773,0.02332,114170.0,114160.0,9.33492952]
[1759290700951,0.02332,114170.0,114160.0,8.98431115]
[1759290701184,0.02332,114170.0,114160.0,9.23499115]
[1759290701775,0.02332,114170.0,114160.0,8.98431115]
[1759290702001,0.02332,114170.0,114160.0,9.23499115]
[1759290702567,0.02332,114170.0,114160.0,9.23495115]
[1759290703351,0.02332,114170.0,114160.0,8.98431115]
[1759290703530,0.02332,114170.0,114160.0,9.23491115]
[1759290703838,0.02332,114170.0,114160.0,8.98431115]
[1759290704040,0.02332,114170.0,114160.0,9.23487115]
[1759290704243,0.02332,114170.0,114160.0,8.98431115]
[1759290704443,0.02332,114170.0,114160.0,9.23487115]
[1759290705307,0.02332,114170.0,114160.0,9.20001897]
[1759290705695,0.02332,114170.0,114160.0,9.27836575]
[1759290705926,0.02332,114170.0,114160.0,9.02780575]
[1759290705927,0.0253,114170.0,114160.0,9.02780575]
[1759290706132,0.0253,114170.0,114160.0,8.94945897]
[1759290706342,0.0253,114170.0,114160.0,9.19993897]
[1759290706565,0.02332,114170.0,114160.0,8.94945897]
[1759290706744,0.02332,114170.0,114160.0,9.19993897]
[1759290707161,0.02332,114170.0,114160.0,8.94945897]
[1759290707382,0.02332,114170.0,114160.0,10.18297897]
[1759290707903,0.02332,114170.0,114160.0,9.11329897]
[1759290708049,0.02332,114170.0,114160.0,10.18297897]
[1759290709894,0.02332,114170.0,114160.0,10.26132575]
[1759290710136,0.02332,114170.0,114160.0,10.18297897]
[1759290711579,0.02332,114170.0,114160.0,10.18285897]
[1759290711777,0.02332,114170.0,114160.0,10.21919237]
[1759290712018,0.02332,114170.0,114160.0,10.29753915]
[1759290712655,0.02332,114170.0,114160.0,10.21919237]
[1759290712870,0.02332,114170.0,114160.0,10.29753915]
[1759290713676,0.02332,114170.0,114160.0,10.21919237]
[1759290715443,0.02332,114170.0,114160.0,10.18285897]
[1759290716691,0.02332,114170.0,114160.0,10.26120575]
[1759290716879,0.02332,114170.0,114160.0,10.18285897]
[1759290718422,0.02332,114170.0,114160.0,10.20441056]
[1759290718630,0.02332,114170.0,114160.0,10.28275734]
[1759290720319,0.02332,114170.0,114160.0,10.26120575]
[1759290723113,0.02332,114170.0,114160.0,10.29739316]
[1759290724523,0.02332,114170.0,114160.0,9.19164575]
[1759290724734,0.02332,114170.0,114160.0,10.26120575]
[1759290725283,0.02332,114170.0,114160.0,9.19164575]
[1759290725494,0.02332,114170.0,114160.0,10.26120575]
[1759290726005,0.02332,114170.0,114160.0,10.28275734]
[1759290726207,0.02332,114170.0,114160.0,9.33450274]
[1759290726800,0.00013924,114180.0,114170.0,0.81517736]
[1759290727002,0.00013924,114180.0,114170.0,8.95183211]
[1759290727201,0.00013924,114180.0,114170.0,9.95771211]
[1759290727406,0.00013924,114180.0,114170.0,9.98398541]
[1759290727802,1e-08,114180.0,114170.0,9.98398541]
[1759290728854,0.02263001,114180.0,114170.0,9.98398541]
[1759290729674,0.02263001,114180.0,114170.0,9.09190541]
[1759290729874,0.02263001,114180.0,114170.0,9.00090541]
[1759290730541,0.02263001,114180.0,114170.0,8.75058541]
[1759290730733,0.02263001,114180.0,114170.0,9.00090541]
[1759290731141,0.02263001,114180.0,114170.0,8.67223863]
[1759290731340,0.02263001,114180.0,114170.0,8.92255863]
[1759290731949,0.02263001,114180.0,114170.0,8.67223863]
[1759290732790,0.02263001,114180.0,114170.0,8.92251863]
[1759290732937,0.02263001,114180.0,114170.0,8.67223863]
[1759290733142,0.02263001,114180.0,114170.0,8.92251863]
[1759290734484,0.02263001,114180.0,114170.0,8.67223863]
[1759290734814,0.02263001,114180.0,114170.0,8.92251863]
[1759290735009,0.02263001,114180.0,114170.0,8.94004863]
[1759290735250,0.02263001,114180.0,114170.0,8.92251863]
[1759290736106,0.02263001,114180.0,114170.0,8.39509874]
[1759290736521,0.02263001,114180.0,114170.0,8.64537874]
[1759290736730,0.02263001,114180.0,114170.0,8.58251863]
[1759290736936,0.02263001,114180.0,114170.0,8.33223863]
[1759290737121,0.02263001,114180.0,114170.0,8.58251863]
[1759290737252,0.02263001,114180.0,114170.0,8.49607863]
[1759290737465,0.02263001,114180.0,114170.0,9.56551863]
[1759290739893,0.02263001,114180.0,114170.0,9.40167863]
[1759290740102,0.02263001,114180.0,114170.0,8.33223863]
[1759290740312,0.02263001,114180.0,114170.0,9.03759863]
[1759290740855,0.02263001,114180.0,114170.0,8.33223863]
[1759290741071,0.02263001,114180.0,114170.0,8.58251863]
[1759290742376,0.02263001,114180.0,114170.0,8.67223863]
[1759290742584,0.02263001,114180.0,114170.0,8.92251863]
[1759290742966,0.02469001,114180.0,114170.0,8.67223863]
[1759290743201,0.02469001,114180.0,114170.0,8.92251863]
[1759290743407,0.02263001,114180.0,114170.0,8.92251863]
[1759290743797,0.02263001,114180.0,114170.0,8.98537874]
[1759290746169,0.02263001,114180.0,114170.0,8.92251863]
[1759290747364,0.02263001,114180.0,114170.0,9.90551863]
[1759290748286,0.02263001,114180.0,114170.0,8.83607863]
[1759290748495,0.02263001,114180.0,114170.0,8.67223863]
[1759290748695,0.02263001,114180.0,114170.0,9.37759863]
[1759290749148,0.02263001,114180.0,114170.0,8.67223863]
[1759290749149,0.02788001,114180.0,114170.0,8.67223863]
[1759290749367,0.02788001,114180.0,114170.0,8.75015387]
[1759290750597,0.02469001,114180.0,114170.0,8.75015387]
[1759290750801,0.02263001,114180.0,114170.0,8.75015387]
[1759290751005,0.02263001,114180.0,114170.0,8.42215798]
[1759290751210,0.02263001,114180.0,114170.0,8.59733534]
[1759290752470,0.02469001,114180.0,114170.0,8.59733534]
[1759290752679,0.02788001,114180.0,114170.0,8.59733534]
[1759290752940,0.02263001,114180.0,114170.0,8.59733534]
[1759290753209,0.02788001,114180.0,114170.0,8.59733534]
[1759290754275,0.02469001,114180.0,114170.0,8.59733534]
[1759290754483,0.02263001,114180.0,114170.0,8.59733534]
[1759290755698,0.02788001,114180.0,114170.0,8.59733534]
[1759290757158,0.02582001,114180.0,114170.0,9.48941534]
[1759290757369,0.02788001,114180.0,114170.0,9.48941534]
[1759290758544,0.02788001,114180.0,114170.0,8.41989534]
[1759290758722,0.02788001,114180.0,114170.0,9.48941534]
[1759290759868,0.02469001,114180.0,114170.0,9.48941534]
[1759290760010,0.02788001,114180.0,114170.0,9.48941534]
[1759290760583,0.02469001,114180.0,114170.0,9.48941534]
[1759290760789,0.02263001,114180.0,114170.0,9.48941534]
[1759290761012,0.02263001,114180.0,114170.0,9.55232388]
[1759290761224,0.02788001,114180.0,114170.0,9.46128388]
[1759290761409,0.02788001,114180.0,114170.0,8.48280388]
[1759290761613,0.02788001,114180.0,114170.0,9.55228388]
[1759290763481,0.02788001,114180.0,114170.0,8.30762652]
[1759290763694,0.20304203,114180.0,114170.0,8.89913534]
[1759290763909,0.3225794,114180.0,114170.0,0.83554]
[1759290764116,0.3225794,114180.0,114170.0,1.08578]
[1759290764328,0.348864,114180.0,114170.0,1.08578]
[1759290764762,0.348864,114180.0,114170.0,0.38042]
[1759290764988,0.348864,114180.0,114170.0,0.0163]
[1759290765192,0.348864,114180.0,114170.0,0.72166]
[1759290766095,0.17520805,114150.0,114140.0,0.19418185]
[1759290766293,0.29999542,114150.0,114140.0,9.26378185]
[1759290766503,0.32445542,114150.0,114140.0,9.23344]
[1759290766905,0.35074917,114150.0,114140.0,9.23344]
[1759290769536,0.35074917,114150.0,114140.0,9.26320192]
[1759290770443,0.35074917,114150.0,114140.0,9.26332192]
[1759290777013,0.34755917,114150.0,114140.0,9.26534192]
[1759290777228,0.35074917,114150.0,114140.0,9.26332192]
[1759290778144,0.31534727,114150.0,114140.0,9.44349532]
[1759290778365,0.31534727,114150.0,114140.0,9.26827192]
[1759290778561,0.31534727,114150.0,114140.0,8.19360192]
[1759290778562,0.35073917,114150.0,114140.0,8.19360192]
[1759290778762,0.35073917,114150.0,114140.0,9.17248192]
[1759290778991,0.35073917,114150.0,114140.0,9.26352192]
[1759290780224,0.35073917,114150.0,114140.0,8.80820192]
[1759290780430,0.35073917,114150.0,114140.0,9.26352192]
[1759290781439,0.35073917,114150.0,114140.0,8.19360192]
[1759290781805,0.35073917,114150.0,114140.0,9.26352192]
[1759290782137,0.35073917,114150.0,114140.0,8.19360192]
[1759290782324,0.35073917,114150.0,114140.0,9.26352192]
[1759290782539,0.35073917,114150.0,114140.0,8.80820192]
[1759290782781,0.35073917,114150.0,114140.0,9.26352192]
[1759290782983,0.35073917,114150.0,114140.0,8.19360192]
[1759290783408,0.35073917,114150.0,114140.0,9.26352192]
[1759290783827,0.35073917,114150.0,114140.0,8.19360192]
[1759290784042,0.35073917,114150.0,114140.0,9.26352192]
[1759290785346,0.35073917,114150.0,114140.0,8.16384]
[1759290785523,0.35073917,114150.0,114140.0,9.23388]
[1759290785720,0.35073917,114150.0,114140.0,8.16384]
[1759290785924,0.35073917,114150.0,114140.0,9.23388]
[1759290786289,0.35073917,114150.0,114140.0,8.77848]
[1759290786488,0.35073917,114150.0,114140.0,9.23388]
[1759290787777,0.35073917,114150.0,114140.0,9.1428]
[1759290787909,0.35073917,114150.0,114140.0,9.23388]
[1759290791067,0.35073917,114150.0,114140.0,9.26012788]
[1759290791432,0.35073917,114150.0,114140.0,1.26012788]
[1759290792237,0.35073917,114150.0,114140.0,1.23388]
[1759290794468,0.17523876,114130.0,114120.0,0.17525346]
[1759290794718,0.26986423,114130.0,114120.0,0.26633346]
[1759290794899,0.26986423,114130.0,114120.0,8.09108]
[1759290794900,0.29370423,114130.0,114120.0,8.09108]
[1759290795142,0.32066613,114130.0,114120.0,8.02541038]
[1759290795349,0.17526947,114110.0,114100.0,0.0002]
[1759290795554,0.26465494,114110.0,114100.0,8.09128]
[1759290795761,0.29373494,114110.0,114100.0,8.25973923]
[1759290796587,0.29373494,114110.0,114100.0,8.00033923]
[1759290796804,0.29373494,114110.0,114100.0,8.34173923]
[1759290797240,0.29373494,114110.0,114100.0,9.07045923]
[1759290798434,0.29373494,114110.0,114100.0,9.09604514]
[1759290799926,0.32003708,114110.0,114100.0,9.09604514]
[1759290800350,0.32003708,114110.0,114100.0,9.07045923]
[1759290800529,0.35018898,114110.0,114100.0,8.00033923]
[1759290800735,0.35018898,114110.0,114100.0,9.07057923]
[1759290801984,0.28849494,114110.0,114100.0,9.25110406]
[1759290802171,0.28849494,114110.0,114100.0,9.07581923]
[1759290802319,0.28849494,114110.0,114100.0,9.07271923]
[1759290802517,0.29052494,114110.0,114100.0,9.07057923]
[1759290802723,0.29052494,114110.0,114100.0,9.24586406]
[1759290803561,0.11322547,114110.0,114100.0,9.25110406]
[1759290803765,0.11322547,114110.0,114100.0,9.59110406]
[1759290803766,0.02384,114110.0,114100.0,9.59110406]
[1759290804202,0.19910947,114110.0,114100.0,9.59110406]
[1759290804411,0.19910947,114110.0,114100.0,8.34247923]
[1759290804582,0.20119947,114110.0,114100.0,9.41271923]
[1759290804985,0.29058494,114110.0,114100.0,9.41057923]
[1759290805383,0.29352494,114110.0,114100.0,9.58586406]
[1759290806706,0.29352494,114110.0,114100.0,8.34033923]
[1759290806885,0.29352494,114110.0,114100.0,9.41057923]
[1759290808050,0.29352494,114110.0,114100.0,8.34033923]
[1759290808244,0.29352494,114110.0,114100.0,9.41057923]
[1759290809255,0.19910947,114110.0,114100.0,9.59118406]
[1759290809659,0.02384,114110.0,114100.0,9.59118406]
[1759290812018,0.19910947,114110.0,114100.0,9.61734555]
[1759290812468,0.02384,114110.0,114100.0,9.27734555]
[1759290813234,0.19910947,114110.0,114100.0,8.20710555]
[1759290813574,0.19910947,114110.0,114100.0,9.27270555]
[1759290813742,0.02384,114110.0,114100.0,9.27270555]
[1759290813945,0.02384,114110.0,114100.0,9.27802555]
[1759290815284,0.02384,114110.0,114100.0,8.20710555]
[1759290815466,0.02384,114110.0,114100.0,9.27802555]
[1759290818822,0.02384,114110.0,114100.0,9.61802555]
[1759290819252,0.02374,114110.0,114100.0,9.61802555]
[1759290819452,0.02374,114110.0,114100.0,9.34568307]
[1759290819649,0.02374,114110.0,114100.0,8.27476307]
[1759290820118,0.02374,114110.0,114100.0,9.31932158]
[1759290820524,0.02374,114110.0,114100.0,9.31928158]
[1759290821618,0.02374,114110.0,114100.0,8.86376158]
[1759290821822,0.02374,114110.0,114100.0,9.31924158]
[1759290822726,0.02374,114110.0,114100.0,9.31920158]
[1759290822875,0.02374,114110.0,114100.0,9.13420158]
[1759290825099,0.02374,114110.0,114100.0,9.04304158]
[1759290825377,0.02374,114110.0,114100.0,9.13412158]
[1759290826832,0.02374,114110.0,114100.0,9.13408158]
[1759290830691,0.02374,114110.0,114100.0,8.06037158]
[1759290830898,0.02374,114110.0,114100.0,9.13367158]
[1759290832924,0.02374,114110.0,114100.0,9.19658012]
[1759290836012,0.02374,114110.0,114100.0,9.13367158]
[1759290837002,0.02374,114110.0,114100.0,9.54849982]
[1759290837410,0.02374,114110.0,114100.0,9.6268466]
[1759290837857,0.02374,114110.0,114100.0,9.65313793]
[1759290838895,0.02374,114110.0,114100.0,9.28865793]
[1759290839502,0.02374,114110.0,114100.0,9.21031115]
[1759290839862,0.02374,114110.0,114100.0,8.75487115]
[1759290840295,0.02374,114110.0,114100.0,8.83321793]
[1759290840509,0.02374,114110.0,114100.0,8.75487115]
[1759290841645,0.02374,114110.0,114100.0,8.83321793]
[1759290842426,0.07295609,114150.0,114140.0,0.5152234]
[1759290842790,0.16234156,114150.0,114140.0,8.30844092]
[1759290843004,0.07590609,114170.0,114160.0,0.17519271]
[1759290843213,0.34253892,114170.0,114160.0,8.30921023]
[1759290843600,0.16445814,114170.0,114160.0,8.31132023]
[1759290843814,0.09150205,114170.0,114160.0,8.31434023]
[1759290844018,0.08943205,114170.0,114160.0,8.31434023]
[1759290844580,0.11394205,114170.0,114160.0,8.31434023]
[1759290845286,0.11394205,114170.0,114160.0,8.06318023]
[1759290845492,0.11394205,114170.0,114160.0,8.31430023]
[1759290845493,0.02455658,114170.0,114160.0,8.31430023]
[1759290847261,0.02455658,114170.0,114160.0,9.29794023]
[1759290847463,0.02455658,114170.0,114160.0,8.22710023]
[1759290847723,0.02455658,114170.0,114160.0,9.29770023]
[1759290847937,0.02455658,114170.0,114160.0,8.22710023]
[1759290848147,0.02455658,114170.0,114160.0,9.29770023]
[1759290848942,0.02455658,114170.0,114160.0,8.22710023]
[1759290849149,0.02455658,114170.0,114160.0,9.29766023]
[1759290850153,0.02455658,114170.0,114160.0,9.29758023]
[1759290850474,0.02455658,114170.0,114160.0,8.22710023]
[1759290850677,0.02455658,114170.0,114160.0,9.29758023]
[1759290850879,0.02455658,114170.0,114160.0,8.84222023]
[1759290851087,0.02662658,114170.0,114160.0,9.29452023]
[1759290851614,0.02662658,114170.0,114160.0,8.22408023]
[1759290851829,0.02662658,114170.0,114160.0,9.29444023]
[1759290852054,0.02662658,114170.0,114160.0,9.29746023]
[1759290852438,0.02455658,114170.0,114160.0,9.29746023]
[1759290854679,0.02455658,114170.0,114160.0,9.36365026]
[1759290855372,0.02662658,114170.0,114160.0,9.26963026]
[1759290855578,0.02455658,114170.0,114160.0,9.36369026]
[1759290856932,0.02455658,114170.0,114160.0,9.17131297]
[1759290857133,0.02957658,114170.0,114160.0,9.34117568]
[1759290858019,0.02957658,114170.0,114160.0,8.27097568]
[1759290858222,0.02957658,114170.0,114160.0,9.34121568]
[1759290858424,0.02957658,114170.0,114160.0,9.34634568]
[1759290858425,0.02455658,114170.0,114160.0,9.34634568]
[1759290860432,0.02455658,114170.0,114160.0,9.34630568]
[1759290860639,0.02455658,114170.0,114160.0,9.28011565]
[1759290860815,0.02455658,114170.0,114160.0,9.36950112]
[1759290861020,0.02455658,114170.0,114160.0,8.29930112]
[1759290861163,0.02455658,114170.0,114160.0,9.36950112]
[1759290861871,0.02455658,114170.0,114160.0,9.36946112]
[1759290862780,0.02455658,114170.0,114160.0,8.29930112]
[1759290862927,0.02455658,114170.0,114160.0,9.36946112]
[1759290863602,0.02455658,114170.0,114160.0,9.27838112]
[1759290863800,0.02455658,114170.0,114160.0,8.29930112]
[1759290864022,0.02455658,114170.0,114160.0,8.91414112]